Cogmind - Beta 12 @@@ ROGUE MODE // 2024.01.31 @ 16:20:41 Player: %41THX3142 Result: Destroyed by G-34 Mercenary with Small Laser Performance ------------- Evolutions (0) 0 Regions Visited (1) 200 Robots Destroyed (24) 120 Value Destroyed (421) 421 Prototype IDs (0) 0 Alien Tech Used (0) 0 Bonus (0) 0 TOTAL SCORE: 741 Bonus ------- None Cogmind --------- Core Integrity 0/250 Matter 269/300 Energy 248/250 System Corruption 0% Temperature Cool (6) Movement Rolling (105) Ox1 Location -10/Materials Parts ------- > --- POWER (1) -------- Ion Engine > --- PROPULSION (2) --- Armored Wheel Armored Wheel > --- UTILITY (2) ------ Large Storage Unit Signal Interpreter > --- WEAPON (2) ------- Beam Rifle Beam Rifle > --- INVENTORY (15) --- Light Ion Engine Light Ion Engine Wheel Armored Wheel Armored Wheel Small Storage Unit Visual Processing Unit Sensor Array Beam Rifle Grenade Launcher Grenade Launcher Peak State ------------ > --- POWER ------------ Ion Engine > --- PROPULSION ------- Armored Wheel Armored Wheel > --- UTILITY ---------- Small Storage Unit Large Storage Unit > --- WEAPON ----------- Beam Rifle Beam Rifle > --- INVENTORY -------- Light Ion Engine Light Ion Engine Wheel Armored Wheel Armored Wheel Beam Rifle Beam Rifle Grenade Launcher [Rating: 12] Favorites ----------- Power Ion Engine Engine Ion Engine Propulsion Wheel Wheel Wheel Utility Small Storage Unit Device Seismic Detector Storage Small Storage Unit Processor Signal Interpreter Weapon Small Laser Energy Gun Small Laser Launcher Grenade Launcher Build | -11 -10 ------- Run | Jun Mat Slots Evolved . | . . Power . | . . Propulsion . | . . Utility . | . . Weapon . | . . Parts Attached 20 | 8 12 Power 3 | 2 1 Engine 3 | 2 1 Core . | . . Reactor . | . . Propulsion 6 | 2 4 Treads . | . . Leg . | . . Wheel 6 | 2 4 Hover . | . . Flight . | . . Utility 4 | 2 2 Device 1 | 1 . Storage 2 | 1 1 Processor 1 | . 1 Hackware . | . . Protection . | . . Artifact . | . . Weapon 7 | 2 5 Energy Gun 6 | 2 4 Energy Cannon . | . . Ballistic Gun . | . . Ballistic Cannon . | . . Launcher 1 | . 1 Special Weapon . | . . Impact Weapon . | . . Slashing Weapon . | . . Piercing Weapon . | . . Special Melee Weapon . | . . Unidentified Prototypes . | . . Parts Lost 3 | . 3 Power . | . . Propulsion 1 | . 1 Utility 1 | . 1 Weapon 1 | . 1 Highest Loss Streak 2 | . 2 To Critical Strikes . | . . Average Slot Usage (%) 92 | . 92 Engine 14 | . 14 Wheel 27 | . 27 Device 4 | . 4 Storage 14 | . 14 Processor 2 | . 2 Energy Gun 27 | . 27 Naked Turns . | . . Heaviest Build 31 | 13 31 Greatest Support 24 | 20 24 Greatest Overweight (x) 2 | . 2 Average Overweight (x) . | . . Largest Inventory Capacity 15 | 8 15 Average Capacity 9 | 7 10 Most Carried 11 | 8 11 Average Carried 7 | 3 8 Final Capacity 15 | 8 15 Final Carried 11 | 8 11 Class Distribution -------------------- 100% | Mutant Dominant Class ---------------- Mutant | -10/Materials Resources | -11 -10 ----------- Run | Jun Mat Matter Collected 476 | 280 196 Remotely . | . . Salvage Created 767 | 207 560 Parts 49 | 15 34 Haulers Intercepted 1 | . 1 Recyclers Shooed 3 | . 3 Parts Field Recycled . | . . Retrieved Matter . | . . Parts Self-Destructed . | . . Prevented . | . . Kills | -11 -10 ------- Run | Jun Mat Combat Hostiles Destroyed 13 | . 13 Guns 11 | . 11 AOE 2 | . 2 Classes Destroyed 7 | 3 4 Worker 2 | 2 . Tunneler 4 | 4 . Hauler 1 | . 1 Recycler 2 | 1 1 Watcher 2 | . 2 Swarmer 5 | . 5 Grunt 8 | . 8 Best Kill Streak 7 | 4 7 Combat Bots Only 5 | . 5 Max Kills in Single Turn 2 | 1 2 Gunslinging 1 | . 1 Exploded 1 | . 1 Melee . | . . Uniques/NPCs Destroyed . | . . Combat | -11 -10 -------- Run | Jun Mat Damage Taken 684 | . 684 Core 251 | . 251 Absorbed by Shields . | . . Core Remaining (%) 100 | 100 . Volleys Fired 69 | 21 48 Largest 2 | 2 2 Hottest 112 | 80 112 Shots Fired 127 | 42 85 Gun 124 | 42 82 Cannon . | . . Launcher 3 | . 3 Special . | . . Kinetic . | . . Thermal 124 | 42 82 Explosive 3 | . 3 Electromagnetic . | . . Robot Hit Streak 7 | 4 7 Robot Miss Streak 4 | 4 4 Penetration Max . | . . Secondary Targets 3 | . 3 Max Gunslinging Chain 1 | . 1 Shots Hit Robots 74 | 24 50 Core Hits 30 | 8 22 Critical Kills . | . . Critical Parts Destroyed . | . . Critical Strikes 2 | . 2 Burn 2 | . 2 Melee Attacks . | . . Impact . | . . Slashing . | . . Piercing . | . . Sneak Attacks . | . . Combat Hostiles . | . . Follow-up Attacks . | . . Damage Inflicted 1078 | 290 788 Guns 957 | 290 667 Cannons . | . . Explosions 121 | . 121 Melee . | . . Ramming . | . . Kinetic . | . . Thermal 957 | 290 667 Explosive 121 | . 121 Electromagnetic . | . . Impact . | . . Slashing . | . . Piercing . | . . Highest Corruption . | . . Average Corruption . | . . Corruption Purged . | . . Corruption Blocked . | . . Overload Shots . | . . Overflow Damage . | . . Projectiles . | . . Explosions . | . . Melee . | . . Knockbacks . | . . Impact . | . . Kinetic . | . . Secondary . | . . Self-Inflicted Damage . | . . Shots . | . . Rammed . | . . Targets Rammed . | . . Kicked . | . . Crushed . | . . Highest Temperature 641 | 162 641 Average Temperature 153 | 49 191 Received Heat Transfer 189 | . 189 Effects 16 | . 16 Shutdowns 3 | . 3 Energy Bleed 1 | . 1 Interference 3 | . 3 Matter Decay 2 | . 2 Short Circuit 1 | . 1 Damage (minor) 1 | . 1 Damage (major) 3 | . 3 Damage (core) 2 | . 2 Siege Activations . | . . Robots Corrupted . | . . Combat Hostiles . | . . Parts Fried . | . . Impact Corruptions . | . . Robots Melted . | . . Combat Hostiles . | . . Parts Melted 4 | 2 2 Heat Transferred 2444 | 650 1794 Parts Sabotaged . | . . Parts Stolen . | . . Parts Stripped . | . . Power Chain Reactions . | . . Missiles Intercepted . | . . Alert | -11 -10 ------- Run | Jun Mat Peak Influence 241 | 35 241 Initial 22 | . 22 Average 105 | 17 130 Maximum Alert Level 1 | . 1 Low Security (%) 78 | 100 72 Level 1 21 | . 27 Level 2 . | . . Level 3 . | . . Level 4 . | . . Level 5 . | . . High Security . | . . Max Security . | . . Squads Dispatched 5 | . 5 Investigation 3 | . 3 Extermination . | . . Reinforcement 2 | . 2 Assault . | . . Garrison . | . . Intercept . | . . Searches Triggered . | . . Construction Impeded . | . . Haulers Reinforced . | . . Active Scanning Responses . | . . Cargo Convoy Interrupts . | . . Stealth | -11 -10 --------- Run | Jun Mat Distress Signals . | . . Communications Jammed . | . . Distress Signals . | . . Times Spotted 24 | . 24 Peak Tracking Total 5 | . 5 Tactical Retreats 1 | . 1 Traps | -11 -10 ------- Run | Jun Mat Traps Triggered 1 | . 1 Indirectly . | . . Trap Hack Attempts . | . . Triggered . | . . Disarmed . | . . Reprogrammed . | . . Reused . | . . Traps Extracted . | . . Installed . | . . Triggered . | . . Machines | -11 -10 ---------- Run | Jun Mat Machines Disabled 1 | . 1 Max in Single Turn 1 | . 1 Machines Repaired . | . . Machines Sabotaged . | . . Overloaded Fab Kills . | . . Hacking | -11 -10 --------- Run | Jun Mat Machines Accessed 2 | . 2 Terminals 1 | . 1 Fabricators . | . . Repair Stations . | . . Recycling Units 1 | . 1 Scanalyzers . | . . Garrison Access . | . . Total Hacks 8 | . 8 Successful 1 | . 1 Failed 7 | . 7 Catastrophic 2 | . 2 Database Lockouts . | . . Manual 4 | . 4 Terminals 4 | . 4 Fabricators . | . . Repair Stations . | . . Recycling Units 4 | . 4 Scanalyzers . | . . Garrison Access . | . . Terminal Hacks . | . . Fabricator Hacks . | . . Repair Station Hacks . | . . Recycling Unit Hacks 1 | . 1 Report Inventory 1 | . 1 Scanalyzer . | . . Garrison Access Hacks . | . . Unauthorized Hacks . | . . Terminals . | . . Fabricators . | . . Repair Stations . | . . Recycling Units . | . . Scanalyzers . | . . Garrison Access . | . . Data Cores Recovered . | . . Used . | . . Hacking Detections 2 | . 2 Full Trace Events 2 | . 2 Feedback Events . | . . Feedback Blocked . | . . Robot Schematics Acquired . | . . Robots Built . | . . Authchips . | . . Time . | . . Total Robot Build Rating . | . . Part Schematics Acquired . | . . Parts Built . | . . Authchips . | . . Time . | . . Total Part Build Rating . | . . Parts Repaired . | . . Time . | . . Parts Recycled . | . . Recycled Matter . | . . Retrieved Matter . | . . Retrieved Components . | . . Parts Scanalyzed . | . . Part Schematics Acquired . | . . Parts Damaged . | . . Bothacking | -11 -10 ------------ Run | Jun Mat Used RIF Installer . | . . Robots Hacked . | . . Non-combat . | . . Combat . | . . Robot Hacks Applied . | . . Relay Couplers Released . | . . Fabnet Peak Effective % . | . . Robots Rewired . | . . Allies Hacked . | . . Hacks Repelled . | . . Allies | -11 -10 -------- Run | Jun Mat Total Allies . | . . Largest Group . | . . Highest-Rated Group . | . . Highest-Rated Ally . | . . Total Orders . | . . Ally Attacks . | . . Total Damage . | . . Kills . | . . Allies Corrupted . | . . Allies Melted . | . . Intel | -11 -10 ------- Run | Jun Mat Robot Analysis Total . | . . Derelict Logs Recovered . | . . Drone Launches . | . . Drone Recoveries . | . . Exploration | -11 -10 ------------- Run | Jun Mat Turns Passed 689 | 155 534 Spaces Moved 507 | 93 414 Core 4 | 4 . Treads . | . . Legs . | . . Wheels 503 | 89 414 Hover . | . . Flight . | . . Fastest Speed 50 | 50 80 Average Speed 84 | 78 85 Slowest Speed 120 | 80 120 Overloaded Moves . | . . Propulsion Burnouts . | . . Robots Hopped . | . . Cave-ins Triggered . | . . Exploration Rate (%) 28 | 5 51 Regions Visited 1 Branch Regions . Pre-discovered Areas . | . . Known Exits Taken . | . . Unknown Exits Taken 1 | 1 . Scrap Searched . | . . Spaces Dug . | . . Terrain Destroyed 12 | . 12 Melee . | . . Projectile . | . . AOE 12 | . 12 Terrain Rammed . | . . Walls Destroyed . | . . Machines Disabled . | . . Actions | -11 -10 --------- Run | Jun Mat Total 641 | 128 513 Wait 21 | . 21 Move 506 | 92 414 Hop . | . . Pick Up 15 | 7 8 Fast Attach 9 | 7 2 Attach 2 | . 2 Detach 1 | . 1 Swap 9 | 1 8 Drop 9 | . 9 Fire 69 | 21 48 Melee . | . . Ram . | . . Kick . | . . Crush . | . . Escape Stasis . | . . Rewire . | . . Trap . | . . Miscellaneous . | . . Route ------- -11/Junkyard -10/Materials (discovered 2 exits: [*Mat] / [*Min]) History --------- Turn | Location | Event 17 | -11/Junkyard | Discovered new exit (range 15) 156 | -11/Junkyard | Entered Materials 317 | -10/Materials | Build established: Mutant 366 | -10/Materials | Discovered new exit (range 13) 567 | -10/Materials | Core integrity fell below 50% 582 | -10/Materials | Core integrity fell below 20% 678 | -10/Materials | Discovered new exit (range 6) 690 | -10/Materials | Destroyed by G-34 Mercenary with Small Laser Last Messages --------------- 00645_ K-01 Serf collects debris. 00645_ U-05 Engineer lays Concrete. 00648_ The unstable cave ceiling collapses. 00648_ U-05 Engineer lays Concrete. 00653_ U-05 Engineer builds a Wall. 00654_ Acquired 2 matter. 00656_ Acquired 17 matter. 00657_ U-05 Engineer builds a Wall. 00665_ U-05 Engineer lays Concrete. 00666_ O-16 Technician: "IFF HANDSHAKE FAILED. SECURING TERMINAL." 00666_ O-16 Technician uses terminal to summon reinforcements. 00666_ ALERT: Hostiles spotted, dispatching reinforcements to Terminal M005. 00666_ O-16 Technician locks terminal. 00666_ U-05 Engineer lays Concrete. 00667_ U-05 Engineer builds a Wall. 00678_ EXIT=FOUND 00690_ Triggered Alarm Trap. 00690_ An alarm sounds. 00690_ ALERT: Alarm triggered, dispatching investigation squad. Map ----- +----------------------------------------------------+ | ??? "Y" #???????????# #####?????? | | ????""" ###########?# #????####?? | | ????? # #?# #????# !##? | | ?????? # "Y" #?# #????# !#? | | ???????# # """ #?# #??### !#? | | ???????# # #?# #?## #? | | ???????+ #####+####### #?#T !#? | | ???????# % #### !##? | | ???????# % %% ####?? | | ???????# % %# ###??? | | ???????# ############ ## == #??? | | ???????# #??????#####/##]]==[[#??? | | ????#### ##?????# ##]] [[#??? | | ##### # ##????# #########??? | | # #????# #####??????? | | [ # ###### # #??????? | | """ " # # # #??????? | | """ " # # + #??????? | | """ " # # #??????? | | #+##### ##?????? | | # # #T## k #?????? | | # # #?????? | | # + +?????? | | ! # # #?????? | | ######### ###### #?????? | | #????????# #????##@ ##?????? | | ?????????# ! #?????# #??????? | | ??????????# #?????/gg #??????? | | ???????????# #?????#gg #??????? | | ???????????########?????# g #??????? | | ????????????????????????#####??????? | | ???????????????????????????????????? | | ???????????????????????????????????? | | ???????????????????????????????????? | | ???????????????????????????????????? | | ???????????????????????????????????? | | | | | | | | | | | | | | | | | | | | | | | | | | | | | +----------------------------------------------------+ Best States ------------- Heat Dissipation 25 Energy Generation 10 Energy Capacity 250 Matter Stores 300 Matter Capacity 300 Sight Range 16 Terrain Scan Density 10 Evasion (%) 44 Item Schematics ----------------- None Robot Schematics ------------------ None Fabricated ------------ Nothing Alien Tech Used ----------------- None Achievements -------------- None Challenges ------------ None Game ------ Seed RecyclingPowerPenetrator Manual? 0 Play Time 00:10:00 Cumulative 23.2 hours Start 2024.01.31 @ 16:10:47 End 2024.01.31 @ 16:20:41 Sessions 1 Manual Loads 0 Difficulty Rogue Special Mode None Game No. 15 Rogue 15 Adventurer 0 Explorer 0 Win Type - Total 0 Types 0/0/0/0/0/0/0/0/0 Lore% 14 Gallery% 19 Achievement% 17 Wizard Run 0 Options --------- ASCII 0 Keyboard 1 Movement Vi Keybinds 0 Fullscreen 1 Font 18/Terminus Map View 76x50 Tactical HUD 1 Map Filters NONE Filters NONE Steam 1 RUN: 0afe3db7-5bb7-42ed-88fb-42bf3b0d793e